Cogmind - Beta 10.2 @@@ ROGUE MODE // 2021.02.19 @ 17:48:10 Player: cavemonk Result: Self-destructed Performance ------------- Evolutions (5) 2500 Regions Visited (18) 3600 Robots Destroyed (113) 565 Value Destroyed (3180) 3180 Prototype IDs (63) 1260 Alien Tech Used (0) 0 Bonus (2320) 2320 TOTAL SCORE: 13425 Bonus ------- High Alert Combat Kills 413 Aligned with FarCom 300 Met Data Miner 300 Met Imprinter 300 Was Imprinted 300 Destroyed Z-Imprinter 1000 Friendly Fire -293 Cogmind --------- Core Integrity 707/1000 Matter 208/300 Energy 475/2150 System Corruption 18% Temperature Cool (15) Movement Flying (180) Ox2 Location -5/Factory Parts ------- > --- POWER (2) -------- Light Angular Momentum Engine Zionite Light DM Reactor > --- PROPULSION (5) --- Nuclear Pulse Array > --- UTILITY (8) ------ Experimental Heat Sink Superbattery Zionite Metafield Generator Improved Transmission Jammer Advanced Shield Generator Makeshift Hacking Suite Makeshift Hacking Suite > --- WEAPON (2) ------- Advanced Plasma Cannon Plasma Sword > --- INVENTORY (4) ---- Zionite Light DM Reactor Advanced Hardlight Generator Mobile Refinery Mk. CCLXVII Heavy Shock Bomb Launcher Peak State ------------ > --- POWER ------------ Zionite Light DM Reactor Zionite Light DM Reactor > --- PROPULSION ------- Nuclear Pulse Thruster Nuclear Pulse Thruster Biomechanical Wings Impulse Thruster Array > --- UTILITY ---------- Experimental Heat Sink Medium Storage Unit Superbattery Zionite Metafield Generator Surveybot 24 Chip Experimental Targeting Computer Makeshift Hacking Suite Makeshift Hacking Suite > --- WEAPON ----------- KE Penetrator KE Penetrator > --- INVENTORY -------- Zionite Light DM Reactor Nuclear Pulse Thruster Zionite Biocell Zionite Biocell Nanoactuators Improved Cloaking Device Mobile Refinery Mk. CCLXVII Heavy Shock Bomb Launcher [Rating: 114] Favorites ----------- Power Cooled Deuterium Engine Engine Cooled Deuterium Engine Power Core Light Nuclear Core Reactor Zionite Light DM Reactor Propulsion Nuclear Pulse Thruster Treads Light Treads Leg Aluminum Leg Wheel Wheel Hover Unit Aerolev Unit Flight Unit Nuclear Pulse Thruster Utility Improved Salvage Targeting Computer Device Improved Shield Generator Storage Superbattery Processor Improved Salvage Targeting Computer Hackware Makeshift Hacking Suite Protection Improved Heavy Armor Plating Weapon Flak Gun Energy Gun EM Pulse Gun Energy Cannon Advanced Plasma Cannon Ballistic Gun Flak Gun Ballistic Cannon Hypervelocity Gauss Cannon Launcher Rocket Launcher Slashing Weapon Greatsword Piercing Weapon CR-A16's Pointy Stick Build | -11 -10 -10 -10 -9 -8 -7 -7 -7 -7 -6 -6 -6 -6 -6 -5 -5 -5 -5 ------- Run | Scr Mat Min Exi Min Mat Fac Low Low Dat Pro Fac Low Zio Dee Pro Fac Was Fac Slots Evolved 10 | . . . . . 4 2 . . . . 2 . . . . 2 . . Power 1 | . . . . . . . . . . . . . . . . 1 . . Propulsion 3 | . . . . . 2 . . . . . . . . . . 1 . . Utility 6 | . . . . . 2 2 . . . . 2 . . . . . . . Weapon . | . . . . . . . . . . . . . . . . . . . Parts Attached 256 | 4 19 1 2 . 18 37 15 2 . 1 17 1 23 46 . 20 4 46 Power 26 | . 3 . . . 2 6 2 . . . . . . 1 . 5 1 6 Engine 13 | . 3 . . . 1 5 2 . . . . . . . . . . 2 Core 5 | . . . . . 1 1 . . . . . . . . . 2 . 1 Reactor 8 | . . . . . . . . . . . . . . 1 . 3 1 3 Propulsion 44 | 2 3 . . . 1 2 6 1 . . 4 . 2 13 . 2 1 7 Treads 6 | 1 2 . . . . . . . . . . . 1 2 . . . . Leg . | . . . . . . . . . . . . . . . . . . . Wheel 2 | 1 1 . . . . . . . . . . . . . . . . . Hover 3 | . . . . . . 1 . . . . . . . 2 . . . . Flight 33 | . . . . . 1 1 6 1 . . 4 . 1 9 . 2 1 7 Utility 119 | 1 4 . . . 7 13 7 1 . 1 9 1 17 26 . 5 . 27 Device 58 | 1 . . . . 1 6 3 . . . 5 . 6 13 . 1 . 22 Storage 23 | . 2 . . . 3 2 1 . . . . 1 3 7 . 2 . 2 Processor 9 | . . . . . 1 2 2 . . . 3 . . 1 . . . . Hackware 8 | . . . . . . 1 . . . 1 . . 1 1 . 2 . 2 Protection 21 | . 2 . . . 2 2 1 1 . . 1 . 7 4 . . . 1 Artifact . | . . . . . . . . . . . . . . . . . . . Weapon 67 | 1 9 1 2 . 8 16 . . . . 4 . 4 6 . 8 2 6 Energy Gun 21 | 1 3 1 1 . 6 6 . . . . . . . 3 . . . . Energy Cannon 2 | . . . . . . . . . . . . . . . . 1 . 1 Ballistic Gun 24 | . 3 . . . . 5 . . . . 4 . 2 3 . 5 2 . Ballistic Cannon 2 | . . . . . . . . . . . . . . . . . . 2 Launcher 13 | . 3 . 1 . 2 5 . . . . . . . . . 2 . . Special Weapon . | . . . . . . . . . . . . . . . . . . . Impact Weapon . | . . . . . . . . . . . . . . . . . . . Slashing Weapon 3 | . . . . . . . . . . . . . . . . . . 3 Piercing Weapon 2 | . . . . . . . . . . . . . 2 . . . . . Special Melee Weapon . | . . . . . . . . . . . . . . . . . . . Unidentified Prototypes 18 | . . . . . 1 3 . . . . 1 . 2 10 . . . 1 Parts Lost 18 | . . . . . . . . 1 . . 1 . . 5 2 2 . 7 Power . | . . . . . . . . . . . . . . . . . . . Propulsion 6 | . . . . . . . . 1 . . . . . . . 2 . 3 Utility 10 | . . . . . . . . . . . 1 . . 4 2 . . 3 Weapon 2 | . . . . . . . . . . . . . . 1 . . . 1 Highest Loss Streak 5 | . . . . . . . . 1 . . 1 . . 5 2 1 . 3 Average Slot Usage (%) 89 | . 99 100 100 100 71 72 93 83 69 69 74 93 92 81 84 84 94 89 Engine 6 | . 14 14 14 14 2 4 7 7 7 7 6 6 6 3 . . . . Treads 4 | . 25 28 28 28 . . . . . . . . . 2 . . . . Flight 17 | . . . . . 9 6 23 17 7 7 7 26 25 15 26 26 23 21 Device 6 | . . . . . 2 9 8 7 7 5 12 15 5 10 18 5 11 14 Storage 11 | . 22 28 28 28 18 15 9 7 7 7 6 4 6 9 13 15 11 8 Processor 13 | . . . . . 6 1 13 15 15 15 17 26 20 16 20 12 11 4 Hackware 1 | . . . . . . 5 . . . 1 3 . . . . 11 11 15 Protection 8 | . 5 . . . 8 11 12 11 7 7 5 . 12 6 . . . 1 Energy Gun 3 | . 7 24 28 14 15 4 . . . . . . . . . . . . Ballistic Gun 9 | . 11 . . . . 5 15 15 15 15 13 13 12 11 . 1 11 4 Launcher 1 | . 8 3 . 14 2 2 . . . . . . . . . 1 . . Naked Turns . | . . . . . . . . . . . . . . . . . . . Heaviest Build 72 | 11 42 42 43 43 72 72 72 39 39 39 54 30 54 54 32 45 45 53 Greatest Support 72 | 20 40 40 40 40 72 72 32 72 72 72 72 32 32 32 32 40 51 51 Greatest Overweight (x) 23 | . 1 1 1 1 . 21 23 . . . . . 16 6 . 1 . 1 Average Overweight (x) 1 | . . 1 1 1 . . . . . . . . 5 . . . . . Largest Inventory Capacity 20 | 6 16 16 16 16 20 18 18 4 4 4 4 4 8 8 8 8 8 8 Average Capacity 7 | 6 11 16 16 16 17 18 7 4 4 4 4 4 4 5 8 8 8 6 Most Carried 18 | 6 16 16 16 16 18 18 17 4 4 4 4 4 8 8 8 8 8 8 Average Carried 7 | 5 10 15 15 15 16 17 6 3 4 3 3 4 4 5 8 7 7 5 Final Capacity 18 | 6 16 16 16 16 18 18 4 4 4 4 4 4 8 8 8 8 8 4 Final Carried 17 | 5 16 16 16 16 17 17 4 4 4 4 4 4 8 8 8 8 8 4 Class Distribution -------------------- 49% | Machinist-Mutant 36% | Mutant 6% | Scavenger-Sprinter Dominant Class ---------------- Mutant | -10/Materials Mutant | -10/Mines Mutant | -10/Exiles Mutant | -9/Mines Mutant | -8/Materials Mutant | -7/Factory Scavenger-Sprinter | -7/Lower Caves Mutant | -7/Lower Caves Mutant | -7/Data Miner Mutant | -6/Proximity Caves Mutant | -6/Factory Mutant | -6/Lower Caves Machinist-Mutant | -6/Zion Mutant | -6/Deep Caves Scavenger-Sprinter | -5/Proximity Caves Scavenger-Sprinter | -5/Factory Scavenger-Sprinter | -5/Waste Hacker-Sprinter | -5/Factory Resources | -11 -10 -10 -10 -9 -8 -7 -7 -7 -7 -6 -6 -6 -6 -6 -5 -5 -5 -5 ----------- Run | Scr Mat Min Exi Min Mat Fac Low Low Dat Pro Fac Low Zio Dee Pro Fac Was Fac Matter Collected 4129 | 240 443 30 . 53 218 758 232 100 . 2 433 . 260 630 . 258 . 472 Remotely . | . . . . . . . . . . . . . . . . . . . Salvage Created 4568 | 121 413 74 . 117 238 1215 180 120 . . 780 . . 308 . 480 . 522 Parts 342 | 7 31 3 . 11 18 67 32 10 . . 73 . . 44 . 31 . 15 Haulers Intercepted 6 | . 2 . . . 3 1 . . . . . . . . . . . . Recyclers Shooed 5 | 1 . . . . . 2 . . . . . . . . . . . 2 Parts Field Recycled . | . . . . . . . . . . . . . . . . . . . Retrieved Matter . | . . . . . . . . . . . . . . . . . . . Parts Self-Destructed 37 | . . . . . . . 15 10 . 11 . . 1 . . . . . Prevented 4 | . . . . . . . . 4 . . . . . . . . . . Kills | -11 -10 -10 -10 -9 -8 -7 -7 -7 -7 -6 -6 -6 -6 -6 -5 -5 -5 -5 ------- Run | Scr Mat Min Exi Min Mat Fac Low Low Dat Pro Fac Low Zio Dee Pro Fac Was Fac Combat Hostiles Destroyed 75 | . 9 2 . 4 4 15 6 4 . . 15 . . 3 . 10 . 3 Melee 2 | . . . . . . . . . . . . . . . . . . 2 Guns 42 | . 6 1 . . 1 6 6 4 . . 15 . . 3 . . . . Cannons 1 | . . . . . . . . . . . . . . . . . . 1 AOE 29 | . 3 1 . 4 3 8 . . . . . . . . . 10 . . Classes Destroyed 14 | 2 5 . . 1 1 3 1 . . . . . . 1 . . . . Worker 6 | . . . . 1 1 3 . . . . . . . . . 1 . . Builder 4 | . 1 . . 1 . 1 . . . . . . . . . 1 . . Tunneler 4 | 1 . 1 . . . 2 . . . . . . . . . . . . Hauler 6 | . 2 . . . 3 1 . . . . . . . . . . . . Recycler 9 | 1 1 . . . . 3 . . . . . . . . . 1 . 3 Operator 5 | . . . . . 1 3 . . . . . . . . . 1 . . Watcher 4 | . 1 . . . . 1 . . . . 1 . . . . 1 . . Swarmer 42 | . 6 . . 2 3 5 4 4 . . 8 . . . . 10 . . Grunt 19 | . 3 2 . 2 1 5 . . . . 5 . . . . . . 1 Brawler 1 | . . . . . . 1 . . . . . . . . . . . . Sentry 5 | . . . . . . 3 . . . . 2 . . . . . . . Programmer 3 | . . . . . . 1 . . . . . . . . . . . 2 Z-Technician 3 | . . . . . . . . . . . . . . 3 . . . . Z-Light 2 | . . . . . . . . . . . . . . 2 . . . . Master Thief 2 | . . . . . . . 2 . . . . . . . . . . . Best Kill Streak 7 | 2 4 3 . 3 4 6 4 4 . . 4 . . 3 . 7 . 1 Combat Bots Only 5 | . 3 2 . 3 3 3 4 4 . . 4 . . 3 . 5 . 1 Max Kills in Single Turn 5 | 1 2 2 . 3 3 4 1 1 . . 1 . . 1 . 5 . 1 Gunslinging 1 | . 1 . . . . . . . . . . . . . . . . . Exploded 5 | . 2 1 . 2 3 3 . . . . . . . . . 5 . . Melee 1 | . . . . . . . . . . . . . . . . . . 1 Uniques/NPCs Destroyed 1 | . . . . . . . . . . . . . . 1 . . . . Z-Imprinter (-6/Deep Caves) Combat | -11 -10 -10 -10 -9 -8 -7 -7 -7 -7 -6 -6 -6 -6 -6 -5 -5 -5 -5 -------- Run | Scr Mat Min Exi Min Mat Fac Low Low Dat Pro Fac Low Zio Dee Pro Fac Was Fac Damage Taken 6256 | . 261 84 . 38 141 979 178 501 . 91 548 . . 1716 112 304 . 1303 Core 715 | . 52 21 . . 10 98 12 58 . . 45 . . 90 36 106 . 187 Absorbed by Shields 768 | . . . . . . . . . . . 200 . . 105 . . . 463 Core Remaining (%) 84 | 100 . . . 70 98 . . . . 76 . . . . 79 . . . Volleys Fired 238 | 4 32 5 . 3 31 43 11 7 . . 33 2 . 27 . 9 . 31 Largest 2 | 2 2 2 . 1 2 2 2 2 . . 2 2 . 2 . 1 . 2 Hottest 159 | 90 90 80 . 33 124 108 56 56 . . 56 56 . 73 . 46 . 159 Shots Fired 385 | 8 60 8 . 3 51 68 22 14 . . 66 4 . 39 . 9 . 33 Gun 306 | 8 57 6 . . 40 50 22 14 . . 66 4 . 39 . . . . Cannon 33 | . . . . . . . . . . . . . . . . . . 33 Launcher 46 | . 3 2 . 3 11 18 . . . . . . . . . 9 . . Special . | . . . . . . . . . . . . . . . . . . . Kinetic 178 | . 26 . . . . 19 22 14 . . 66 4 . 24 . . . 3 Thermal 92 | 8 16 . . . 13 10 . . . . . . . 15 . . . 30 Explosive 24 | . 3 2 . 3 11 5 . . . . . . . . . . . . Electromagnetic 91 | . 15 6 . . 27 34 . . . . . . . . . 9 . . Robot Hit Streak 16 | 6 11 2 . 2 11 11 . 5 . . 16 . . 7 . 4 . 8 Robot Miss Streak 11 | . 1 1 . . 1 4 . 11 . . 5 . . 5 . . . 2 Penetration Max . | . . . . . . . . . . . . . . . . . . . Secondary Targets 2 | . 1 . . . . . . 1 . . . . . . . . . . Max Gunslinging Chain 1 | . 1 . . . . . . 1 . . . . . . . . . . Shots Hit Robots 183 | 6 41 4 . 1 29 37 . 11 . . 24 . . 12 . 1 . 17 Core Hits 310 | 3 20 6 . 8 16 64 25 12 . . 84 3 . 43 . 18 . 8 Critical Hits 2 | . . . . . . . . . . . . . . . . . . 2 Critical Kills . | . . . . . . . . . . . . . . . . . . . Critical Parts Destroyed 2 | . . . . . . . . . . . . . . . . . . 2 Melee Attacks 74 | . . . . . . . . . . . . . 44 . . . . 30 Impact . | . . . . . . . . . . . . . . . . . . . Slashing 30 | . . . . . . . . . . . . . . . . . . 30 Piercing 44 | . . . . . . . . . . . . . 44 . . . . . Sneak Attacks 5 | . . . . . . . . . . . . . . . . . . 5 Combat Hostiles . | . . . . . . . . . . . . . . . . . . . Follow-up Attacks . | . . . . . . . . . . . . . . . . . . . Damage Inflicted 9663 | 71 559 249 . 276 775 2297 501 148 . . 1150 149 . 925 . 1184 . 1379 Guns 4544 | 71 437 37 . . 378 748 501 148 . . 1150 149 . 925 . . . . Cannons 173 | . . . . . . . . . . . . . . . . . . 173 Explosions 3737 | . 119 212 . 276 397 1549 . . . . . . . . . 1184 . . Melee 1206 | . . . . . . . . . . . . . . . . . . 1206 Ramming 3 | . 3 . . . . . . . . . . . . . . . . . Kinetic 3297 | . 194 . . . . 380 501 148 . . 1150 149 . 721 . . . 54 Thermal 1797 | 71 93 . . . 197 932 . . . . . . . 204 . 181 . 119 Explosive 1718 | . 119 212 . 276 333 386 . . . . . . . . . 392 . . Electromagnetic 1642 | . 150 37 . . 245 599 . . . . . . . . . 611 . . Impact . | . . . . . . . . . . . . . . . . . . . Slashing 1206 | . . . . . . . . . . . . . . . . . . 1206 Piercing . | . . . . . . . . . . . . . . . . . . . Highest Corruption 10 | . . . . . . . . . . . 2 2 2 . 5 . 6 10 Average Corruption 5 | . . . . . . . . . . . 1 2 2 . 5 . 6 7 Corruption Purged . | . . . . . . . . . . . . . . . . . . . Effects 43 | . . . . . . . . . . . 1 1 . . . . 1 40 Message Errors 9 | . . . . . . . . . . . 1 . . . . . . 8 Matter Fused 10 | . . . . . . . . . . . . . . . . . 1 9 Heat Flow Errors 3 | . . . . . . . . . . . . 1 . . . . . 2 Energy Discharges 1 | . . . . . . . . . . . . . . . . . . 1 Data Loss (minor) 4 | . . . . . . . . . . . . . . . . . . 4 Data Loss (major) 3 | . . . . . . . . . . . . . . . . . . 3 Misdirections 6 | . . . . . . . . . . . . . . . . . . 6 Targeting Errors 6 | . . . . . . . . . . . . . . . . . . 6 Weapon Failures 1 | . . . . . . . . . . . . . . . . . . 1 Overload Shots . | . . . . . . . . . . . . . . . . . . . Overflow Damage 634 | . 16 . . . 1 223 . . . . . . . . . 2 . 392 Projectiles . | . . . . . . . . . . . . . . . . . . . Explosions 242 | . 16 . . . 1 223 . . . . . . . . . 2 . . Melee 392 | . . . . . . . . . . . . . . . . . . 392 Knockbacks 1 | . . . . . . . . . . . . . . . . . . 1 Impact . | . . . . . . . . . . . . . . . . . . . Kinetic 1 | . . . . . . . . . . . . . . . . . . 1 Secondary . | . . . . . . . . . . . . . . . . . . . Self-Inflicted Damage 283 | . . . . . 11 174 . . . . . . . . . 98 . . Shots 11 | . . . . . 1 6 . . . . . . . . . 4 . . Rammed 2 | . 2 . . . . . . . . . . . . . . . . . Targets Rammed 2 | . 2 . . . . . . . . . . . . . . . . . Kicked . | . . . . . . . . . . . . . . . . . . . Crushed . | . . . . . . . . . . . . . . . . . . . Highest Temperature 256 | 120 210 81 . 2 238 199 . 13 . . 49 . . 156 114 246 14 256 Average Temperature 58 | 60 56 40 . 2 94 52 . 5 . . 17 . . 57 28 47 7 69 Received Heat Transfer 1299 | . 69 48 . 12 54 240 9 48 . 12 144 . . 495 18 9 . 141 Effects 2 | . . . . . 2 . . . . . . . . . . . . . Energy Bleed 2 | . . . . . 2 . . . . . . . . . . . . . Siege Activations . | . . . . . . . . . . . . . . . . . . . Robots Corrupted 2 | . . . . . 1 1 . . . . . . . . . . . . Combat Hostiles 1 | . . . . . . 1 . . . . . . . . . . . . Parts Fried 12 | . 1 . . . 2 2 . . . . . . . . . 7 . . Impact Corruptions . | . . . . . . . . . . . . . . . . . . . Robots Melted . | . . . . . . . . . . . . . . . . . . . Combat Hostiles . | . . . . . . . . . . . . . . . . . . . Parts Melted 3 | . . . . . . 2 . . . . . . . 1 . . . . Heat Transferred 2248 | 174 260 . . . 346 946 . . . . . . . 222 . 150 . 150 Parts Sabotaged . | . . . . . . . . . . . . . . . . . . . Parts Stolen 3 | . . . . . . . 2 . . . . 1 . . . . . . Parts Stripped . | . . . . . . . . . . . . . . . . . . . Power Chain Reactions 6 | . . . . . 1 3 . . . . . . . . . 2 . . Missiles Intercepted . | . . . . . . . . . . . . . . . . . . . Alert | -11 -10 -10 -10 -9 -8 -7 -7 -7 -7 -6 -6 -6 -6 -6 -5 -5 -5 -5 ------- Run | Scr Mat Min Exi Min Mat Fac Low Low Dat Pro Fac Low Zio Dee Pro Fac Was Fac Peak Influence 1195 | 10 294 167 . 70 133 1195 . . . . 482 . . . . 710 290 848 Initial 245 | . 6 82 . . 11 60 . . . . 34 . . . . . 245 203 Average 264 | 7 109 148 . 23 83 723 . . . . 258 . . . . 283 253 321 Maximum Alert Level 4 | . 1 . . . . 4 . . . . 2 . . . . 3 1 3 Low Security (%) 58 | 100 79 100 . 100 100 16 . . . . 44 . . . . 55 . 8 Level 1 18 | . 20 . . . . 1 . . . . 27 . . . . 8 100 68 Level 2 10 | . . . . . . 23 . . . . 28 . . . . 18 . 14 Level 3 11 | . . . . . . 52 . . . . . . . . . 16 . 8 Level 4 . | . . . . . . 5 . . . . . . . . . . . . Level 5 . | . . . . . . . . . . . . . . . . . . . High Security . | . . . . . . . . . . . . . . . . . . . Max Security . | . . . . . . . . . . . . . . . . . . . Squads Dispatched 18 | . . . . . 2 5 . . . . 7 . . . . 1 . 3 Investigation 6 | . . . . . 2 1 . . . . 1 . . . . 1 . 1 Extermination 2 | . . . . . . 1 . . . . 1 . . . . . . . Reinforcement 6 | . . . . . . 3 . . . . 2 . . . . . . 1 Assault . | . . . . . . . . . . . . . . . . . . . Garrison 4 | . . . . . . . . . . . 3 . . . . . . 1 Intercept . | . . . . . . . . . . . . . . . . . . . Construction Impeded . | . . . . . . . . . . . . . . . . . . . Haulers Reinforced 1 | . . . . . . 1 . . . . . . . . . . . . Stealth | -11 -10 -10 -10 -9 -8 -7 -7 -7 -7 -6 -6 -6 -6 -6 -5 -5 -5 -5 --------- Run | Scr Mat Min Exi Min Mat Fac Low Low Dat Pro Fac Low Zio Dee Pro Fac Was Fac Distress Signals 4 | . 1 . . . 1 . . . . . . . . . . 1 . 1 Communications Jammed . | . . . . . . . . . . . . . . . . . . . Distress Signals . | . . . . . . . . . . . . . . . . . . . Times Spotted 189 | . 14 2 . 4 11 30 16 11 . 2 33 2 . 3 13 22 5 21 Peak Tracking Total 15 | . 5 2 . 2 6 5 5 7 . 3 10 1 . 3 15 7 5 10 Tactical Retreats 28 | . 1 . . . 1 3 3 3 . 1 5 . . . . 3 . 8 Traps | -11 -10 -10 -10 -9 -8 -7 -7 -7 -7 -6 -6 -6 -6 -6 -5 -5 -5 -5 ------- Run | Scr Mat Min Exi Min Mat Fac Low Low Dat Pro Fac Low Zio Dee Pro Fac Was Fac Traps Triggered 6 | . 1 . . . . . . . . . 2 . . . . 1 . 2 Indirectly . | . . . . . . . . . . . . . . . . . . . Trap Hack Attempts . | . . . . . . . . . . . . . . . . . . . Triggered . | . . . . . . . . . . . . . . . . . . . Disarmed . | . . . . . . . . . . . . . . . . . . . Reprogrammed . | . . . . . . . . . . . . . . . . . . . Reused . | . . . . . . . . . . . . . . . . . . . Traps Extracted . | . . . . . . . . . . . . . . . . . . . Installed . | . . . . . . . . . . . . . . . . . . . Triggered 2 | . . . . . . . . 2 . . . . . . . . . . Machines | -11 -10 -10 -10 -9 -8 -7 -7 -7 -7 -6 -6 -6 -6 -6 -5 -5 -5 -5 ---------- Run | Scr Mat Min Exi Min Mat Fac Low Low Dat Pro Fac Low Zio Dee Pro Fac Was Fac Machines Disabled 39 | . . 2 . . 2 29 . . . . . . . 1 . 5 . . Max in Single Turn 12 | . . 2 . . 1 12 . . . . . . . 1 . 2 . . Garrison Access 2 | . . . . . . 1 . . . . . . . . . . . 1 Machines Sabotaged . | . . . . . . . . . . . . . . . . . . . Garrisons Compromised 1 | . . . . . . . . . . . . . . . . 1 . . Overloaded Fab Kills . | . . . . . . . . . . . . . . . . . . . Fab Network Shutdowns 1 | . . . . . . . . . . . . . . . . . . 1 Hacking | -11 -10 -10 -10 -9 -8 -7 -7 -7 -7 -6 -6 -6 -6 -6 -5 -5 -5 -5 --------- Run | Scr Mat Min Exi Min Mat Fac Low Low Dat Pro Fac Low Zio Dee Pro Fac Was Fac Machines Accessed 59 | . 10 . 1 . 6 13 . 1 4 . 5 . . . . 6 . 13 Terminals 29 | . 7 . . . 4 7 . . . . 2 . . . . 4 . 5 Fabricators 7 | . . . . . . 2 . . . . 2 . . . . 2 . 1 Repair Stations 3 | . 1 . . . . . . . . . . . . . . . . 2 Recycling Units 6 | . 2 . . . 1 . . . . . . . . . . . . 3 Scanalyzers 6 | . . . . . 1 3 . . . . 1 . . . . . . 1 Garrison Access 2 | . . . . . . 1 . . . . . . . . . . . 1 Total Hacks 186 | . 30 . 1 . 19 32 . 1 33 . 13 . . . . 16 . 41 Successful 126 | . 15 . 1 . 11 19 . 1 33 . 8 . . . . 9 . 29 Failed 60 | . 15 . . . 8 13 . . . . 5 . . . . 7 . 12 Catastrophic 6 | . 2 . . . 1 . . . . . 1 . . . . . . 2 Database Lockouts . | . . . . . . . . . . . . . . . . . . . Manual 77 | . 23 . 1 . 7 17 . . . . 3 . . . . 10 . 16 Terminals 79 | . 24 . . . 9 19 . . . . 4 . . . . 8 . 15 Fabricators 23 | . . . . . . 5 . . . . 7 . . . . 8 . 3 Repair Stations 13 | . 2 . . . . . . . . . . . . . . . . 11 Recycling Units 13 | . 4 . . . 4 . . . . . . . . . . . . 5 Scanalyzers 21 | . . . . . 6 7 . . . . 2 . . . . . . 6 Garrison Access 2 | . . . . . . 1 . . . . . . . . . . . 1 Terminal Hacks 61 | . 8 . 1 . 3 6 . 1 33 . . . . . . 3 . 6 Record 11 | . . . . . . . . . 11 . . . . . . . . . Part Schematic 15 | . . . . . . 1 . . 13 . . . . . . 1 . . Robot Schematic 6 | . . . . . . . . . 6 . . . . . . . . . Prototype ID Bank 7 | . 4 . . . . . . . 3 . . . . . . . . . Open Door 1 | . . . . . . . . 1 . . . . . . . . . . Branch Access Points 2 | . . . . . 1 1 . . . . . . . . . . . . Terminal Index 5 | . 1 . . . . 2 . . . . . . . . . 1 . 1 Fabricator Index 2 | . . . . . . . . . . . . . . . . 1 . 1 Scanalyzer Index 1 | . . . . . . . . . . . . . . . . . . 1 Alert Level 1 | . . . . . . . . . . . . . . . . . . 1 Unreport Threat 4 | . . . . . 1 1 . . . . . . . . . . . 2 Recall Extermination 1 | . . . . . . 1 . . . . . . . . . . . . Registered Components 1 | . 1 . . . . . . . . . . . . . . . . . Zone Layout 3 | . 2 . . . 1 . . . . . . . . . . . . . EX-Prototype ID Bank 1 | . . . 1 . . . . . . . . . . . . . . . Fabricator Hacks 13 | . . . . . . 3 . . . . 4 . . . . 4 . 2 Load Schematic 7 | . . . . . . 2 . . . . 2 . . . . 2 . 1 Build 6 | . . . . . . 1 . . . . 2 . . . . 2 . 1 Repair Station Hacks 12 | . 2 . . . . . . . . . . . . . . . . 10 Scan Component 6 | . 1 . . . . . . . . . . . . . . . . 5 Repair 6 | . 1 . . . . . . . . . . . . . . . . 5 Recycling Unit Hacks 7 | . 2 . . . 2 . . . . . . . . . . . . 3 Retrieve Matter 3 | . 1 . . . 1 . . . . . . . . . . . . 1 Retrieve Components 4 | . 1 . . . 1 . . . . . . . . . . . . 2 Scanalyzer 19 | . . . . . 5 6 . . . . 2 . . . . . . 6 Insert Component 9 | . . . . . 2 3 . . . . 1 . . . . . . 3 Analyze 10 | . . . . . 3 3 . . . . 1 . . . . . . 3 Garrison Access Hacks 2 | . . . . . . 1 . . . . . . . . . . . 1 Seal Access 2 | . . . . . . 1 . . . . . . . . . . . 1 Unauthorized Hacks 12 | . 3 . . . 1 3 . . . . 2 . . . . 2 . 1 Terminals 7 | . 3 . . . . 3 . . . . . . . . . 1 . . Track 2 | . 2 . . . . . . . . . . . . . . . . . Assimilate 4 | . . . . . . 3 . . . . . . . . . 1 . . Operators 1 | . 1 . . . . . . . . . . . . . . . . . Fabricators 4 | . . . . . . . . . . . 2 . . . . 1 . 1 Report 2 | . . . . . . . . . . . 1 . . . . 1 . . Prioritize 1 | . . . . . . . . . . . . . . . . . . 1 Siphon 1 | . . . . . . . . . . . 1 . . . . . . . Repair Stations . | . . . . . . . . . . . . . . . . . . . Recycling Units 1 | . . . . . 1 . . . . . . . . . . . . . Mask 1 | . . . . . 1 . . . . . . . . . . . . . Scanalyzers . | . . . . . . . . . . . . . . . . . . . Garrison Access . | . . . . . . . . . . . . . . . . . . . Data Cores Recovered . | . . . . . . . . . . . . . . . . . . . Used . | . . . . . . . . . . . . . . . . . . . Hacking Detections 50 | . 10 . . . 6 11 . . . . 5 . . . . 6 . 12 Full Trace Events 4 | . . . . . . 1 . . . . 1 . . . . 1 . 1 Feedback Events . | . . . . . . . . . . . . . . . . . . . Feedback Blocked . | . . . . . . . . . . . . . . . . . . . Robot Schematics Acquired 6 | . . . . . . . . . 6 . . . . . . . . . Robots Built . | . . . . . . . . . . . . . . . . . . . Matter . | . . . . . . . . . . . . . . . . . . . Time . | . . . . . . . . . . . . . . . . . . . Total Robot Build Rating . | . . . . . . . . . . . . . . . . . . . Part Schematics Acquired 22 | . . . . . 2 2 . . 13 . 1 . . . . 1 . 3 Parts Built 9 | . . . . . . 2 . . . . 3 . . . . 3 . 1 Matter 1397 | . . . . . . 168 . . . . 403 . . . . 508 . 318 Time 518 | . . . . . . 84 . . . . 247 . . . . 103 . 84 Total Part Build Rating 45 | . . . . . . 8 . . . . 15 . . . . 16 . 6 Parts Repaired 6 | . 1 . . . . . . . . . . . . . . . . 5 Time 378 | . 26 . . . . . . . . . . . . . . . . 352 Parts Recycled . | . . . . . . . . . . . . . . . . . . . Recycled Matter . | . . . . . . . . . . . . . . . . . . . Retrieved Matter . | . . . . . . . . . . . . . . . . . . . Retrieved Components 7 | . 4 . . . . . . . . . . . . . . . . 3 Parts Scanalyzed 8 | . . . . . 2 2 . . . . 1 . . . . . . 3 Part Schematics Acquired 7 | . . . . . 2 1 . . . . 1 . . . . . . 3 Parts Damaged 1 | . . . . . . . . . . . . . . . . . . 1 Bothacking | -11 -10 -10 -10 -9 -8 -7 -7 -7 -7 -6 -6 -6 -6 -6 -5 -5 -5 -5 ------------ Run | Scr Mat Min Exi Min Mat Fac Low Low Dat Pro Fac Low Zio Dee Pro Fac Was Fac Used RIF Installer . | . . . . . . . . . . . . . . . . . . . Robots Hacked . | . . . . . . . . . . . . . . . . . . . Non-combat . | . . . . . . . . . . . . . . . . . . . Combat . | . . . . . . . . . . . . . . . . . . . Robot Hacks Applied . | . . . . . . . . . . . . . . . . . . . Relay Couplers Released . | . . . . . . . . . . . . . . . . . . . Robots Rewired . | . . . . . . . . . . . . . . . . . . . Allies Hacked . | . . . . . . . . . . . . . . . . . . . Hacks Repelled . | . . . . . . . . . . . . . . . . . . . Allies | -11 -10 -10 -10 -9 -8 -7 -7 -7 -7 -6 -6 -6 -6 -6 -5 -5 -5 -5 -------- Run | Scr Mat Min Exi Min Mat Fac Low Low Dat Pro Fac Low Zio Dee Pro Fac Was Fac Total Allies 23 | . . 3 . . . 2 . . . 1 . . 4 . . 13 . . Largest Group 13 | . . 3 1 1 . 2 . . . 1 . . 4 . . 13 . . Highest-Rated Group 312 | . . 40 16 16 . 52 . . . 94 . . 148 . . 312 . . Highest-Rated Ally 94 | . . 16 16 16 . 26 . . . 94 . . 37 . . 31 . . Total Orders 9 | . . . . . . 9 . . . . . . . . . . . . STAY 5 | . . . . . . 5 . . . . . . . . . . . . FOLLOW 4 | . . . . . . 4 . . . . . . . . . . . . Ally Attacks 15 | . . . . 3 . . . . . 7 . . . . . 5 . . Total Damage 434 | . . . . 35 . . . . . 345 . . . . . 54 . . Kills 3 | . . . . . . . . . . 2 . . . . . 1 . . Allies Corrupted . | . . . . . . . . . . . . . . . . . . . Allies Melted . | . . . . . . . . . . . . . . . . . . . Intel | -11 -10 -10 -10 -9 -8 -7 -7 -7 -7 -6 -6 -6 -6 -6 -5 -5 -5 -5 ------- Run | Scr Mat Min Exi Min Mat Fac Low Low Dat Pro Fac Low Zio Dee Pro Fac Was Fac Robot Analysis Total . | . . . . . . . . . . . . . . . . . . . Derelict Logs Recovered 5 | . . . . 1 . . . . . 2 . . . . 2 . . . Drone Launches . | . . . . . . . . . . . . . . . . . . . Drone Recoveries . | . . . . . . . . . . . . . . . . . . . Exploration | -11 -10 -10 -10 -9 -8 -7 -7 -7 -7 -6 -6 -6 -6 -6 -5 -5 -5 -5 ------------- Run | Scr Mat Min Exi Min Mat Fac Low Low Dat Pro Fac Low Zio Dee Pro Fac Was Fac Turns Passed 16569 | 44 1186 374 472 694 655 1028 287 213 43 294 757 26 8352 888 66 290 29 871 Spaces Moved 11798 | 15 642 199 258 377 584 1442 546 489 86 392 1091 54 2503 703 253 659 140 1365 Core 778 | . . . . . . 1 2 . . . . . 775 . . . . . Treads 1429 | 15 484 199 258 377 . . . . . . . . . 96 . . . . Legs . | . . . . . . . . . . . . . . . . . . . Wheels 158 | . 158 . . . . . . . . . . . . . . . . . Hover . | . . . . . . . . . . . . . . . . . . . Flight 9433 | . . . . . 584 1441 544 489 86 392 1091 54 1728 607 253 659 140 1365 Fastest Speed 14 | 160 80 180 180 180 50 50 31 31 50 50 31 31 31 15 15 14 15 14 Average Speed 117 | 160 153 180 180 180 50 50 38 37 50 50 47 31 324 67 26 16 15 23 Slowest Speed 1200 | 160 180 180 180 180 50 1100 1200 50 50 50 50 31 850 430 31 91 15 107 Overloaded Moves . | . . . . . . . . . . . . . . . . . . . Propulsion Burnouts . | . . . . . . . . . . . . . . . . . . . Robots Hopped 37 | . . . . . 2 9 . . . . 3 . . . 4 10 . 9 Cave-ins Triggered 1 | . . . . . . . . . . . . . . . . . . 1 Exploration Rate (%) 52 | 3 85 46 68 79 42 39 58 66 73 67 20 8 85 63 59 15 91 34 Regions Visited 18 Branch Regions 11 Pre-discovered Areas 3 | . . . . . . . . . 1 . . . 1 . 1 . . . Known Exits Taken 5 | . . . . . 1 1 . . . 1 1 1 . . . . . . Unknown Exits Taken 11 | 1 1 1 1 1 . . 1 1 1 . . . 1 1 1 . . . Scrap Searched 14 | . . 1 . 1 . . 4 2 . 2 . . 3 . 1 . . . Spaces Dug 108 | . 10 . . 7 51 . . . . . . . 8 . . . . 32 Terrain Destroyed 368 | . 19 9 . 28 91 132 . . . . . . 8 . . 45 . 36 Melee 17 | . . . . . . . . . . . . . 8 . . . . 9 Projectile 27 | . . . . . . . . . . . . . . . . . . 27 AOE 324 | . 19 9 . 28 91 132 . . . . . . . . . 45 . . Terrain Rammed . | . . . . . . . . . . . . . . . . . . . Walls Destroyed . | . . . . . . . . . . . . . . . . . . . Machines Disabled . | . . . . . . . . . . . . . . . . . . . Actions | -11 -10 -10 -10 -9 -8 -7 -7 -7 -7 -6 -6 -6 -6 -6 -5 -5 -5 -5 --------- Run | Scr Mat Min Exi Min Mat Fac Low Low Dat Pro Fac Low Zio Dee Pro Fac Was Fac Total 14016 | 26 790 208 268 390 892 1661 604 505 85 489 1265 58 2668 1080 248 821 147 1811 Wait 1337 | 1 62 . . 4 239 95 7 . . 93 109 1 55 249 . 120 . 302 Move 11709 | 14 641 198 257 376 579 1424 545 488 85 391 1084 53 2502 702 245 640 139 1346 Hop 34 | . . . . . 2 8 . . . . 3 . . . 3 9 . 9 Pick Up 119 | 1 19 2 3 1 9 18 1 3 . 2 7 . 16 13 . 8 3 13 Fast Attach 117 | 1 5 . . . 7 14 12 1 . . 8 1 14 29 . 4 1 20 Attach 61 | . 2 . . . 3 7 2 1 . . 6 . 7 8 . 12 3 10 Detach 25 | . . . . . 1 4 . . . . 2 . 3 4 . 7 . 4 Swap 78 | 3 12 1 2 . 8 16 1 . . 1 3 . 2 9 . 4 . 16 Drop 216 | 2 15 2 6 1 13 32 25 5 . 2 10 1 25 39 . 8 1 29 Fire 238 | 4 32 5 . 3 31 43 11 7 . . 33 2 . 27 . 9 . 31 Melee 74 | . . . . . . . . . . . . . 44 . . . . 30 Ram . | . . . . . . . . . . . . . . . . . . . Kick . | . . . . . . . . . . . . . . . . . . . Crush 2 | . 2 . . . . . . . . . . . . . . . . . Escape Stasis 1 | . . . . . . . . . . . . . . . . . . 1 Rewire 5 | . . . . 5 . . . . . . . . . . . . . . Trap . | . . . . . . . . . . . . . . . . . . . Miscellaneous . | . . . . . . . . . . . . . . . . . . . Route ------- -11/Scrapyard -10/Materials (discovered 4 exits: [*Mat x3] / [*Min]) -10/Mines -10/Exiles -9/Mines (discovered 2 exits: *Mat x2) -8/Materials -7/Factory (discovered 5 exits: *Fac / *Sto x2 / *Low x2) -7/Lower Caves -7/Lower Caves -7/Data Miner -6/Proximity Caves -6/Factory -6/Lower Caves -6/Zion (discovered 2 exits: [*Dee] / [*Pro]) -6/Deep Caves -5/Proximity Caves -5/Factory -5/Waste -5/Factory (discovered 2 exits: [*Fac x2]) History --------- Turn | Location | Event 19 | -11/Scrapyard | Discovered new exit (range 2) 45 | -11/Scrapyard | Entered Materials 151 | -10/Materials | Discovered new exit (range 13) 234 | -10/Materials | Discovered new exit (range 12) 311 | -10/Materials | Build established: Mutant 487 | -10/Materials | Discovered new exit (range 15) 722 | -10/Materials | Repaired Lgt. Assault Rifle 815 | -10/Materials | Discovered new exit (range 8) 1231 | -10/Materials | Entered Mines 1287 | -10/Mines | Received a Rocket Launcher from a helpful Derelict 1440 | -10/Mines | Assisted by bots powering up and referring to "LRC-V3" 1541 | -10/Mines | Found a hidden stash of uninstalled traps 1598 | -10/Mines | Deemed a non-threat by the Exiles lab entrance 1598 | -10/Mines | Discovered new exit (range 5) 1605 | -10/Mines | Entered Exiles 1605 | -10/Exiles | Accompanied by 1 ally 1650 | -10/Exiles | Met 8R-AWN 1679 | -10/Exiles | Met EX-HEX 1740 | -10/Exiles | Met EX-BIN 1766 | -10/Exiles | Aligned with FarCom system 1767 | -10/Exiles | Given EX-Vault access code 1811 | -10/Exiles | Opened EX-Vault 1828 | -10/Exiles | Found Flying Fortress v7 1831 | -10/Exiles | Found Skeleton Box 1841 | -10/Exiles | Found Superbattery 1879 | -10/Exiles | Warned to stay clear of 0b10 Research branches 1935 | -10/Exiles | Met EX-DEC 2052 | -10/Exiles | Discovered new exit (range 14) 2077 | -10/Exiles | Stole three prototypes: Flying Fortress v7, Superbattery, Skeleton Box 2077 | -10/Exiles | Entered Mines 2077 | -9/Mines | Accompanied by 1 ally 2086 | -9/Mines | Met a Derelict bent on vengeance 2715 | -9/Mines | Discovered new exit (range 13) 2729 | -9/Mines | Discovered new exit (range 12) 2771 | -9/Mines | Entered Materials 2771 | -8/Materials | Evolved 4 slots: Propulsion x2, Utility x2 2772 | -8/Materials | Identified exit to Factory 3426 | -8/Materials | Entered Factory 3426 | -7/Factory | Evolved 2 slots: Utility x2 3428 | -7/Factory | FarCom data flow suspended 3478 | -7/Factory | Discovered new exit (range 9) 3556 | -7/Factory | Found Prototype Launcher 3597 | -7/Factory | Identified Rocket Array 3769 | -7/Factory | Identified exit to Storage 3769 | -7/Factory | Identified exit to Lower Caves 4035 | -7/Factory | Discovered new exit (range 17) 4264 | -7/Factory | Fabricated Imp. Salvage Targeting Computer (x2) 4454 | -7/Factory | Entered Lower Caves 4454 | -7/Lower Caves | Spotted PK-G6B(f) 4454 | -7/Lower Caves | Spotted 50-W74(f) 4455 | -7/Lower Caves | Encountered a Master Thief 4455 | -7/Lower Caves | Encountered a Master Thief 4455 | -7/Lower Caves | Spotted UQ-7QW(f) 4456 | -7/Lower Caves | Encountered a Master Thief 4460 | -7/Lower Caves | Skeleton Box stolen by Master Thief 4460 | -7/Lower Caves | Superbattery stolen by Master Thief 4461 | -7/Lower Caves | Destroyed PK-G6B(f) 4473 | -7/Lower Caves | Destroyed UQ-7QW(f) 4695 | -7/Lower Caves | Attracted the attention of an 0b10 outpost 4708 | -7/Lower Caves | Encountered a Warlord checkpoint 4719 | -7/Lower Caves | Discovered new exit (range 6) 4741 | -7/Lower Caves | Entered another Lower Caves area 4766 | -7/Lower Caves | Encountered a Warlord checkpoint 4802 | -7/Lower Caves | Build established: Scavenger-Sprinter 4824 | -7/Lower Caves | Attracted the attention of an 0b10 checkpoint 4833 | -7/Lower Caves | Spotted B-75 Beast 4950 | -7/Lower Caves | Discovered new exit (range 7) 4954 | -7/Lower Caves | Entered Data Miner 4954 | -7/Data Miner | Discovered new exit (range 6) 4964 | -7/Data Miner | Met Data Miner 4977 | -7/Data Miner | Learned location of Section 7 (-3) 4977 | -7/Data Miner | Acquired the access code to Warlord's prototype stash 4986 | -7/Data Miner | Received God Mode back door access code from Data Miner 4997 | -7/Data Miner | Entered Proximity Caves 5034 | -6/Proximity Caves | Escorted by Enhanced Grunt 5122 | -6/Proximity Caves | Build established: Mutant 5133 | -6/Proximity Caves | Spotted B-75 Beast 5160 | -6/Proximity Caves | Learned location of 1 exit from Factory 5207 | -6/Proximity Caves | Identified exit to Factory 5291 | -6/Proximity Caves | Entered Factory 5291 | -6/Factory | Evolved 2 slots: Utility x2 5292 | -6/Factory | Identified exit to Lower Caves 5352 | -6/Factory | Garrison activated, responded to threat 5568 | -6/Factory | Fabricated Exp. Targeting Computer? 5954 | -6/Factory | Fabricated Nuclear Pulse Thruster (x2) 6048 | -6/Factory | Entered Lower Caves 6048 | -6/Lower Caves | Spotted X2-UJF(f) 6049 | -6/Lower Caves | Encountered a Master Thief 6058 | -6/Lower Caves | Imp. Maneuvering Thrusters stolen by Master Thief 6072 | -6/Lower Caves | A Derelict revealed a hidden shortcut to a safe place 6074 | -6/Lower Caves | Identified exit to Zion 6074 | -6/Lower Caves | Entered Zion 6097 | -6/Zion | Found CR-A16's Pointy Stick 6111 | -6/Zion | Discovered new exit (range 14) 6121 | -6/Zion | System corruption cleaned by Quarantine Array 6212 | -6/Zion | Found Prototype Device 6212 | -6/Zion | Identified Mobile Refinery Mk. CCLXVII 6242 | -6/Zion | Learned location of Armory (-3) 6266 | -6/Zion | Given the Hacking Drone Bay 6273 | -6/Zion | Found Prototype Device 6442 | -6/Zion | Build established: Machinist-Mutant 6766 | -6/Zion | Discovered new exit (range 5) 7076 | -6/Zion | Found Prototype Device 7076 | -6/Zion | Identified Bomb Factory No. 2 14027 | -6/Zion | Visited the Megawrench Repair Shop 14039 | -6/Zion | Megawrench repaired 9 parts 14275 | -6/Zion | Imprinted 14277 | -6/Zion | Declared Zion's savior 14409 | -6/Zion | Saw the warning signs outside the Deep Caves entrance 14426 | -6/Zion | Entered Deep Caves 14426 | -6/Deep Caves | Accompanied by 4 allies 14792 | -6/Deep Caves | Attacked by Z-Imprinter 14829 | -6/Deep Caves | Destroyed Z-Imprinter 14837 | -6/Deep Caves | Found Prototype Protection 14837 | -6/Deep Caves | Identified Zio. Weapon Casing 14858 | -6/Deep Caves | Build established: Mutant 14874 | -6/Deep Caves | Lost 5 parts (4u1w) 14947 | -6/Deep Caves | Found Prototype Device 14947 | -6/Deep Caves | Identified Zio. Metafield Generator 15050 | -6/Deep Caves | Found Zio. Weapon Casing 15054 | -6/Deep Caves | Found Zio. Weapon Casing 15210 | -6/Deep Caves | Z-Facility disabled 15278 | -6/Deep Caves | Found Surveybot 24 Scanner 15281 | -6/Deep Caves | Found Surveybot 24 Chip 15288 | -6/Deep Caves | Discovered new exit (range 17) 15314 | -6/Deep Caves | Entered Proximity Caves 15359 | -5/Proximity Caves | Learned Factory emergency access door positions 15371 | -5/Proximity Caves | Discovered new exit (range 17) 15380 | -5/Proximity Caves | Entered Factory 15380 | -5/Factory | Evolved 2 slots: Power x1, Propulsion x1 15400 | -5/Factory | Incoming assault squad redirected 15452 | -5/Factory | Build established: Scavenger-Sprinter 15516 | -5/Factory | Fabricated Nuclear Pulse Thruster (x2) 15533 | -5/Factory | Discovered new exit (range 8) 15625 | -5/Factory | Fabricated Exp. Heat Sink (x1) 15670 | -5/Factory | Sucked down chute 15670 | -5/Factory | Entered Waste 15685 | -5/Waste | EMP discharged 15688 | -5/Waste | Spotted C-40 Crusher 15691 | -5/Waste | Spotted C-40 Crusher 15693 | -5/Waste | Spotted C-40 Crusher 15694 | -5/Waste | Spotted C-40 Crusher 15695 | -5/Waste | Spotted C-40 Crusher 15697 | -5/Waste | Spotted C-40 Crusher 15697 | -5/Waste | Discovered new exit (range 12) 15699 | -5/Waste | Entered Factory 15799 | -5/Factory | Repaired Impulse Thruster Array 15886 | -5/Factory | Repaired Broken Nanoactuators 15943 | -5/Factory | Repaired Hvy. Shock Bomb Launcher 16020 | -5/Factory | Repaired Adv. Cooling System 16030 | -5/Factory | Repaired Broken Imp. Cloaking Device? 16092 | -5/Factory | Garrison activated, responded to threat 16162 | -5/Factory | Discovered new exit (range 12) 16170 | -5/Factory | Discovered new exit (range 15) 16321 | -5/Factory | Spotted B-75 Beast 16326 | -5/Factory | System corruption reached 10% 16364 | -5/Factory | Lost 3 parts (1n1u1w) 16366 | -5/Factory | Incoming investigation squad redirected 16383 | -5/Factory | Fabricated Plasma Sword (x1) 16410 | -5/Factory | Local fabrication network quarantined 16570 | -5/Factory | Crushed by falling debris 16570 | -5/Factory | Self-destructed Last Messages --------------- 16500_ K-01 Serf collects debris. 16501_ U-05 Engineer lays Concrete. 16501_ K-01 Serf collects debris. 16502_ |Y7/%:R#UWFB/KVIN,GA 7KCTOW LFX/ZO&8IHP 16502_ U-05 Engineer lays Concrete. 16526_ P6BNMIL1<53V02TO238KK W9 16528_ System corrupted: Adv. Plasma Cannon targeting data glitched. 16538_ System corrupted: Adv. Plasma Cannon failed to cycle. 16542_ System corrupted: Adv. Plasma Cannon targeting data glitched. 16551_ D0YN/5EH4C%EIR RX/WQJJ/ 16553_ System corrupted: Adv. Plasma Cannon targeting data glitched. 16570_ K-01 Serf cleans the Terminal. 16570_ The unstable cave ceiling collapses. 16570_ Crushed by falling debris. 16570_ Nuclear Pulse Array destroyed. 16570_ System corrupted by crushing effect (+3). 16570_ Imp. Hacking Suite destroyed. 16570_ System corrupted by crushing effect (+4). 16570_ Field Propulsion Drive destroyed. 16570_ System corrupted by crushing effect (+1). Map ----- +----------------------------------------------------+ | ?????????????????????????????????????????????????? | | ?????????????????????????????????????????????????? | | ?????????????????????????????????????????????????? | | ?????????????????????????????????????????????????? | | ?????????????????????????????????????????????????? | | ?????????????????????????????????????????????????? | | ?????????????????????????????????????????????????? | | ?????????????????????????????????????????????????? | | ?????????????????????????????????????????????????? | | ?????????????????????????????????????????????????? | | ?????????????????????????????????????????????????? | | ?????????????????????????????????????????????????? | | ?????????????????????????????? ? ????????????????? | | ????????????????????????????? #??????????????? | | ????????????????????????????? #??????????????? | | ????????????????? ????###??? #??????????????? | | ????????????????? ??? ? #??????????????? | | ????????????????? #??????????????? | | ???????????????? """ """ """ !! #####??????????? | | ??????????????"" """ """ """ !! ?????????? | | ???????????? """ """ """ """ ! ??????????? | | ??????????? ?????????? | | ??????????? ?????????? | | ?????????? ????????? | | ?????????? ! ????????? | | ?????????? k @ R k ku ????????? | | ?????????????????######T####"T"###???????????????? | | ?????????????????????????##""""#???##????????????? | | ??????????????????????????#""###??# #????????????? | | ??????????????????????????## ##?# #?????????????? | | ???????????????????????????## ## #?????????? ?? | | ????????????????????????????##"""############ "? | | ?????????????????????????????## ! # "" | | ??????????????????????????????# # | | ??????????????????????????????# """ """ """ # "" | | ??????????????????????????????# """ """ """ # "" | | ??????????????????????????????# """ """ """ # "" | | ??????????????????????????????# # | | ??????????????????????????????# """ """ """ # "" | | ??????????????????????????????# """ """ """ # "" | | ??????????????????????????????# """ """ """ # "" | | ??????????????????????????????# + | | ??????????????????????????????# # "" | | ??????????????????????????????##########"#### "" | | ???????????????????????????????????????# #??# "" | | ??????????????????????????????????????## #??# | | ??????????????????????????????????????# #??# "" | | ??????????????????????????????????????## #??# "" | | ???????????????????????????????????????# #??# "" | | ???????????????????????????????????????# #??# | +----------------------------------------------------+ Best States ------------- Heat Dissipation 89 Coolant Potential 65 Energy Generation 49 Energy Capacity 3315 Matter Stores 300 Matter Capacity 300 Sight Range 22 Robot Scan Range 16 Terrain Scan Range 24 Terrain Scan Density 2010 Jamming Range 12 Cloak Strength 3 Armor Coverage 825 Power Shielding 66 Propulsion Shielding 66 Weapon Shielding 100 Melee Speed Boost 30 Evasion (%) 81 Targeting Accuracy 12 Melee Accuracy 8 Recoil Reduction 2 Matter Filtering 30 Salvage Targeting 4 Offensive Hacking 44 Defensive Hacking 12 Item Schematics ----------------- Adv. Treads | -8/Materials | Scanalyzed Lgt. Angular Momentum Engine | -8/Materials | Scanalyzed Imp. Salvage Targeting Computer | -7/Factory | Hacked Hvy. Missile Launcher | -7/Factory | Scanalyzed Combat Drone Bay | -7/Data Miner | Free Lgt. Regenerative Plating | -7/Data Miner | Free Cmb. Gravmag System | -7/Data Miner | Free Exp. Cesium-ion Thruster | -7/Data Miner | Free Triangulator | -7/Data Miner | Free Exp. Sensor Array | -7/Data Miner | Free Exp. Terrain Scanner | -7/Data Miner | Free Exp. Terrain Scan Processor | -7/Data Miner | Free Exp. Targeting Computer | -7/Data Miner | Free Exp. ECM Suite | -7/Data Miner | Free Cloaking Device | -7/Data Miner | Free Mni. Smartbomb Launcher | -7/Data Miner | Free Plasma Sword | -7/Data Miner | Free Nuclear Pulse Thruster | -6/Factory | Scanalyzed Exp. Heat Sink | -5/Factory | Hacked Adv. Shield Generator | -5/Factory | Scanalyzed Nanoactuators | -5/Factory | Scanalyzed Impulse Thruster Array | -5/Factory | Scanalyzed Robot Schematics ------------------ S-27 Virus | -7/Data Miner | Free G-50 Soldier | -7/Data Miner | Free G-67 Veteran | -7/Data Miner | Free L-41 Fighter | -7/Data Miner | Free X-72 Disruptor | -7/Data Miner | Free I-36 Angel | -7/Data Miner | Free Fabricated ------------ Imp. Salvage Targeting Computer | x2 | -7/Factory Exp. Targeting Computer | x1 | -6/Factory Nuclear Pulse Thruster | x2 | -6/Factory Nuclear Pulse Thruster | x2 | -5/Factory Exp. Heat Sink | x1 | -5/Factory Plasma Sword | x1 | -5/Factory Alien Tech Used ----------------- None Achievements -------------- None Challenges ------------ None Game ------ Seed NeutronLightpackDevice Manual? 0 Play Time 03:50:22 Cumulative 193.0 hours Start 2021.02.19 @ 12:34:48 End 2021.02.19 @ 17:48:10 Sessions 1 Manual Loads 0 Difficulty Rogue Special Mode None Game No. 114 Rogue 114 Adventurer 0 Explorer 0 Win Type - Total 3 Types 3/0/0/0/0/0/0/0/0 Lore% 40 Gallery% 66 Achievement% 50 Wizard Run 0 Options --------- ASCII 0 Keyboard 0 Movement Mouse Keybinds 0 Fullscreen 2 Font 18/TerminusBold Map View 76x50 Tactical HUD 1 Map Filters NONE Filters NONE Steam 1 RUN: 6fcad036-cdcb-4a7d-8d6f-b0d5314e95e0